[Event "Titled Tuesday Blitz January 10 Early 2023"]
[White "Colas, Joshua"]
[Black "Zemlyanskii, Ivan"]
[WhiteFideId "2044447"]
[BlackFideId "24249971"]
[WhiteElo "2342"]
[BlackElo "2300"]
[Result "0-1"]
[Round "04"]
[TimeControl "180+2"]
[Date "2023.01.10"]
[WhiteClock "0:00:11"]
[BlackClock "0:00:35"]

1. Nf3 {[%clk 0:03:00]}  d5 {[%clk 0:03:00]} 2. c4 {[%clk 0:02:59]}  e6 {[%clk 0:02:59]} 3. g3 {[%clk 0:02:59]}  Nf6 {[%clk 0:03:00]} 4. Bg2 {[%clk 0:03:00]}  d4 {[%clk 0:03:00]} 5. O-O {[%clk 0:02:59]}  c5 {[%clk 0:03:00]} 6. e3 {[%clk 0:03:00]}  Nc6 {[%clk 0:02:59]} 7. exd4 {[%clk 0:03:01]}  cxd4 {[%clk 0:03:00]} 8. Re1 {[%clk 0:03:02]}  Bd6 {[%clk 0:02:53]} 9. b3 {[%clk 0:02:46]}  O-O {[%clk 0:02:52]} 10. Ba3 {[%clk 0:02:42]}  e5 {[%clk 0:02:50]} 11. d3 {[%clk 0:02:32]}  Re8 {[%clk 0:02:42]} 12. Bxd6 {[%clk 0:02:30]}  Qxd6 {[%clk 0:02:43]} 13. Nbd2 {[%clk 0:02:31]}  Bf5 {[%clk 0:02:42]} 14. Bf1 {[%clk 0:02:14]}  Nb4 {[%clk 0:02:35]} 15. Qb1 {[%clk 0:02:12]}  a5 {[%clk 0:02:23]} 16. a3 {[%clk 0:02:06]}  Nc6 {[%clk 0:02:23]} 17. Nh4 {[%clk 0:01:47]}  Bg4 {[%clk 0:02:08]} 18. Bg2 {[%clk 0:01:38]}  Nd7 {[%clk 0:02:00]} 19. h3 {[%clk 0:01:32]}  Be6 {[%clk 0:01:57]} 20. Ne4 {[%clk 0:01:23]}  Qe7 {[%clk 0:01:55]} 21. Nf3 {[%clk 0:01:17]}  h6 {[%clk 0:01:54]} 22. g4 {[%clk 0:01:09]}  f5 {[%clk 0:01:42]} 23. gxf5 {[%clk 0:01:04]}  Bxf5 {[%clk 0:01:43]} 24. Ng3 {[%clk 0:01:02]}  Bh7 {[%clk 0:01:41]} 25. Qb2 {[%clk 0:00:59]}  Nc5 {[%clk 0:01:37]} 26. Bf1 {[%clk 0:00:36]}  Bxd3 {[%clk 0:01:12]} 27. Rad1 {[%clk 0:00:27]}  Bxf1 {[%clk 0:01:10]} 28. Kxf1 {[%clk 0:00:28]}  Qf6 {[%clk 0:01:03]} 29. Nh2 {[%clk 0:00:20]}  e4 {[%clk 0:00:58]} 30. b4 {[%clk 0:00:18]}  axb4 {[%clk 0:00:56]} 31. axb4 {[%clk 0:00:18]}  Nd3 {[%clk 0:00:54]} 32. Rxd3 {[%clk 0:00:14]}  exd3 {[%clk 0:00:54]} 33. Rxe8+ {[%clk 0:00:15]}  Rxe8 {[%clk 0:00:54]} 34. Qd2 {[%clk 0:00:16]}  Ne5 {[%clk 0:00:42]} 35. c5 {[%clk 0:00:16]}  Nf3 {[%clk 0:00:38]} 36. Nxf3 {[%clk 0:00:13]}  Qxf3 {[%clk 0:00:39]} 37. b5 {[%clk 0:00:13]}  Ra8 {[%clk 0:00:38]} 38. Kg1 {[%clk 0:00:10]}  Ra1+ {[%clk 0:00:36]} 39. Nf1 {[%clk 0:00:11]}  Rxf1+ {[%clk 0:00:34]} 40. Kxf1 {[%clk 0:00:11]}  Qh1# {[%clk 0:00:35]} 0-1


[Site "https://www.chess.com"]

[Event "Titled Tuesday Blitz January 10 Early 2023"]
[White "Aradhya, Garg"]
[Black "Hnydiuk, Aleksander"]
[WhiteFideId "25006746"]
[BlackFideId "1109057"]
[WhiteElo "2284"]
[BlackElo "2363"]
[Result "1-0"]
[Round "04"]
[TimeControl "180+2"]
[Date "2023.01.10"]
[WhiteClock "0:02:08"]
[BlackClock "0:00:25"]

1. d4 {[%clk 0:03:00]}  Nf6 {[%clk 0:02:59]} 2. Nf3 {[%clk 0:02:59]}  e6 {[%clk 0:02:59]} 3. Bg5 {[%clk 0:02:59]}  h6 {[%clk 0:02:56]} 4. Bh4 {[%clk 0:02:58]}  Be7 {[%clk 0:02:53]} 5. e3 {[%clk 0:02:57]}  O-O {[%clk 0:02:52]} 6. Bd3 {[%clk 0:02:54]}  b6 {[%clk 0:02:52]} 7. O-O {[%clk 0:02:54]}  Bb7 {[%clk 0:02:52]} 8. Nbd2 {[%clk 0:02:53]}  c5 {[%clk 0:02:52]} 9. c3 {[%clk 0:02:53]}  d5 {[%clk 0:02:48]} 10. Qe2 {[%clk 0:02:47]}  Nbd7 {[%clk 0:02:48]} 11. a4 {[%clk 0:02:47]}  a6 {[%clk 0:02:46]} 12. Ne5 {[%clk 0:02:39]}  Nxe5 {[%clk 0:02:43]} 13. dxe5 {[%clk 0:02:40]}  Nd7 {[%clk 0:02:39]} 14. Bg3 {[%clk 0:02:40]}  Bh4 {[%clk 0:02:27]} 15. f4 {[%clk 0:02:37]}  Bxg3 {[%clk 0:02:27]} 16. hxg3 {[%clk 0:02:36]}  f6 {[%clk 0:02:28]} 17. Qg4 {[%clk 0:02:33]}  Qe7 {[%clk 0:02:24]} 18. Qg6 {[%clk 0:02:33]}  f5 {[%clk 0:02:16]} 19. g4 {[%clk 0:02:32]}  Rf7 {[%clk 0:00:52]} 20. gxf5 {[%clk 0:02:27]}  Nf8 {[%clk 0:00:52]} 21. Qg4 {[%clk 0:02:26]}  exf5 {[%clk 0:00:47]} 22. Bxf5 {[%clk 0:02:25]}  d4 {[%clk 0:00:33]} 23. exd4 {[%clk 0:02:18]}  cxd4 {[%clk 0:00:34]} 24. Ne4 {[%clk 0:02:09]}  dxc3 {[%clk 0:00:27]} 25. bxc3 {[%clk 0:02:08]}  Kh8 {[%clk 0:00:25]} 26. Nd6 {[%clk 0:02:08]} 1-0


[Site "https://www.chess.com"]

[Event "Titled Tuesday Blitz January 10 Early 2023"]
[White "Rangel, Daniel"]
[Black "Borges Feria, Yasel"]
[WhiteFideId "2124475"]
[BlackFideId "3504921"]
[WhiteElo "2207"]
[BlackElo "2439"]
[Result "1/2-1/2"]
[Round "04"]
[TimeControl "180+2"]
[Date "2023.01.10"]
[WhiteClock "0:01:16"]
[BlackClock "0:01:20"]

1. c4 {[%clk 0:03:00]}  e6 {[%clk 0:02:57]} 2. g3 {[%clk 0:02:59]}  d5 {[%clk 0:02:57]} 3. Bg2 {[%clk 0:02:59]}  dxc4 {[%clk 0:02:58]} 4. Qa4+ {[%clk 0:02:58]}  Nd7 {[%clk 0:02:58]} 5. Qxc4 {[%clk 0:02:59]}  a6 {[%clk 0:02:59]} 6. Nf3 {[%clk 0:02:58]}  b5 {[%clk 0:02:59]} 7. Qc2 {[%clk 0:02:59]}  Bb7 {[%clk 0:02:59]} 8. a4 {[%clk 0:02:59]}  c5 {[%clk 0:02:58]} 9. O-O {[%clk 0:02:59]}  Ngf6 {[%clk 0:02:57]} 10. d3 {[%clk 0:02:57]}  Be7 {[%clk 0:02:57]} 11. Nc3 {[%clk 0:02:47]}  Qb6 {[%clk 0:02:54]} 12. Qb3 {[%clk 0:02:45]}  Nd5 {[%clk 0:02:48]} 13. axb5 {[%clk 0:02:36]}  axb5 {[%clk 0:02:46]} 14. Rxa8+ {[%clk 0:02:33]}  Bxa8 {[%clk 0:02:47]} 15. Nd2 {[%clk 0:02:26]}  Nxc3 {[%clk 0:02:44]} 16. bxc3 {[%clk 0:02:26]}  O-O {[%clk 0:02:41]} 17. Bb2 {[%clk 0:02:17]}  Bxg2 {[%clk 0:02:31]} 18. Kxg2 {[%clk 0:02:18]}  Ra8 {[%clk 0:02:31]} 19. Ra1 {[%clk 0:02:12]}  Rxa1 {[%clk 0:02:28]} 20. Bxa1 {[%clk 0:02:12]}  Qa6 {[%clk 0:02:20]} 21. Bb2 {[%clk 0:02:10]}  h6 {[%clk 0:02:13]} 22. Qa3 {[%clk 0:01:38]}  Qb7+ {[%clk 0:02:02]} 23. f3 {[%clk 0:01:32]}  Nf6 {[%clk 0:01:50]} 24. c4 {[%clk 0:01:23]}  bxc4 {[%clk 0:01:24]} 25. Bxf6 {[%clk 0:01:17]}  Bxf6 {[%clk 0:01:20]} 26. Nxc4 {[%clk 0:01:16]} 1/2-1/2


[Site "https://www.chess.com"]

[Event "Titled Tuesday Blitz January 10 Early 2023"]
[White "Rahman, Ziaur"]
[Black "Talibov, Shiroghlan"]
[WhiteFideId "10200037"]
[BlackFideId "13429078"]
[WhiteElo "2464"]
[BlackElo "2359"]
[Result "1/2-1/2"]
[Round "04"]
[TimeControl "180+2"]
[Date "2023.01.10"]
[WhiteClock "0:00:08"]
[BlackClock "0:00:31"]

1. d4 {[%clk 0:02:57]}  d6 {[%clk 0:02:58]} 2. Nf3 {[%clk 0:02:53]}  Nf6 {[%clk 0:02:56]} 3. g3 {[%clk 0:02:52]}  g6 {[%clk 0:02:48]} 4. Bg2 {[%clk 0:02:47]}  Bg7 {[%clk 0:02:49]} 5. b3 {[%clk 0:02:47]}  O-O {[%clk 0:02:50]} 6. Bb2 {[%clk 0:02:47]}  c5 {[%clk 0:02:49]} 7. dxc5 {[%clk 0:02:36]}  Qa5+ {[%clk 0:02:48]} 8. Nbd2 {[%clk 0:02:07]}  Qxc5 {[%clk 0:02:39]} 9. O-O {[%clk 0:02:06]}  Nc6 {[%clk 0:02:38]} 10. c4 {[%clk 0:01:59]}  a5 {[%clk 0:02:33]} 11. e3 {[%clk 0:01:53]}  a4 {[%clk 0:02:32]} 12. Nd4 {[%clk 0:01:48]}  Bg4 {[%clk 0:02:28]} 13. Qc1 {[%clk 0:01:40]}  Qh5 {[%clk 0:02:16]} 14. Nxc6 {[%clk 0:01:37]}  bxc6 {[%clk 0:02:17]} 15. Bxc6 {[%clk 0:01:28]}  Rac8 {[%clk 0:02:15]} 16. Bg2 {[%clk 0:01:26]}  d5 {[%clk 0:02:14]} 17. c5 {[%clk 0:01:05]}  e5 {[%clk 0:02:08]} 18. b4 {[%clk 0:01:04]}  Bh3 {[%clk 0:02:05]} 19. f3 {[%clk 0:00:44]}  Bh6 {[%clk 0:02:01]} 20. Qe1 {[%clk 0:00:43]}  d4 {[%clk 0:01:59]} 21. e4 {[%clk 0:00:39]}  Be3+ {[%clk 0:01:43]} 22. Kh1 {[%clk 0:00:39]}  Be6 {[%clk 0:01:44]} 23. Qe2 {[%clk 0:00:32]}  g5 {[%clk 0:01:44]} 24. Nc4 {[%clk 0:00:27]}  Bxc4 {[%clk 0:01:38]} 25. Qxc4 {[%clk 0:00:27]}  g4 {[%clk 0:01:39]} 26. f4 {[%clk 0:00:26]}  a3 {[%clk 0:01:26]} 27. Bc1 {[%clk 0:00:23]}  exf4 {[%clk 0:01:24]} 28. gxf4 {[%clk 0:00:23]}  g3 {[%clk 0:01:23]} 29. h3 {[%clk 0:00:23]}  Ng4 {[%clk 0:01:23]} 30. Qe2 {[%clk 0:00:20]}  f5 {[%clk 0:01:14]} 31. Bxe3 {[%clk 0:00:20]}  dxe3 {[%clk 0:01:15]} 32. Kg1 {[%clk 0:00:20]}  Qh4 {[%clk 0:01:03]} 33. e5 {[%clk 0:00:18]}  Rfd8 {[%clk 0:01:02]} 34. Rad1 {[%clk 0:00:17]}  Rxd1 {[%clk 0:00:56]} 35. Rxd1 {[%clk 0:00:17]}  Nf2 {[%clk 0:00:57]} 36. Rd7 {[%clk 0:00:13]}  Qxf4 {[%clk 0:00:50]} 37. Bd5+ {[%clk 0:00:10]}  Kh8 {[%clk 0:00:42]} 38. Qh5 {[%clk 0:00:08]}  h6 {[%clk 0:00:31]} 39. Rh7+ {[%clk 0:00:06]}  Kxh7 {[%clk 0:00:29]} 40. Qf7+ {[%clk 0:00:07]}  Kh8 {[%clk 0:00:30]} 41. Qf6+ {[%clk 0:00:07]}  Kh7 {[%clk 0:00:30]} 42. Qf7+ {[%clk 0:00:07]}  Kh8 {[%clk 0:00:31]} 43. Qf6+ {[%clk 0:00:08]}  Kh7 {[%clk 0:00:31]} 44. Qf7+ {[%clk 0:00:08]} 1/2-1/2


[Site "https://www.chess.com"]

[Event "Titled Tuesday Blitz January 10 Early 2023"]
[White "Starozhilov, Leonid"]
[Black "Tomaszewski, Kacper"]
[WhiteFideId "14106752"]
[BlackFideId "1127373"]
[WhiteElo "2313"]
[BlackElo "2313"]
[Result "1-0"]
[Round "04"]
[TimeControl "180+2"]
[Date "2023.01.10"]
[WhiteClock "0:00:25"]
[BlackClock "0:00:35"]

1. e4 {[%clk 0:03:00]}  c6 {[%clk 0:03:00]} 2. d3 {[%clk 0:03:00]}  d5 {[%clk 0:03:00]} 3. Nd2 {[%clk 0:03:01]}  dxe4 {[%clk 0:02:55]} 4. dxe4 {[%clk 0:03:01]}  g6 {[%clk 0:02:56]} 5. Ngf3 {[%clk 0:03:02]}  Bg7 {[%clk 0:02:56]} 6. Bc4 {[%clk 0:03:02]}  Nh6 {[%clk 0:02:56]} 7. a4 {[%clk 0:02:59]}  O-O {[%clk 0:02:56]} 8. c3 {[%clk 0:02:59]}  Nd7 {[%clk 0:02:56]} 9. O-O {[%clk 0:02:58]}  Ng4 {[%clk 0:02:52]} 10. Qe2 {[%clk 0:02:53]}  Nge5 {[%clk 0:02:49]} 11. Ba2 {[%clk 0:02:48]}  Nxf3+ {[%clk 0:02:49]} 12. Nxf3 {[%clk 0:02:47]}  Ne5 {[%clk 0:02:49]} 13. Bf4 {[%clk 0:02:36]}  Bg4 {[%clk 0:02:38]} 14. Bxe5 {[%clk 0:02:33]}  Bxe5 {[%clk 0:02:36]} 15. h3 {[%clk 0:02:30]}  Bxf3 {[%clk 0:02:34]} 16. Qxf3 {[%clk 0:02:31]}  e6 {[%clk 0:02:32]} 17. Qe2 {[%clk 0:02:17]}  Qc7 {[%clk 0:02:30]} 18. g3 {[%clk 0:02:10]}  Rad8 {[%clk 0:02:29]} 19. Kg2 {[%clk 0:02:05]}  Rd7 {[%clk 0:02:24]} 20. Rad1 {[%clk 0:02:04]}  Rfd8 {[%clk 0:02:24]} 21. Rxd7 {[%clk 0:01:49]}  Rxd7 {[%clk 0:02:23]} 22. f4 {[%clk 0:01:49]}  Bg7 {[%clk 0:02:23]} 23. f5 {[%clk 0:01:49]}  exf5 {[%clk 0:02:14]} 24. exf5 {[%clk 0:01:47]}  Qe5 {[%clk 0:02:13]} 25. Qf2 {[%clk 0:01:02]}  Qe4+ {[%clk 0:02:00]} 26. Kg1 {[%clk 0:00:50]}  gxf5 {[%clk 0:01:48]} 27. Re1 {[%clk 0:00:41]}  Qxa4 {[%clk 0:01:38]} 28. Qxf5 {[%clk 0:00:27]}  Qxa2 {[%clk 0:00:37]} 29. Re8+ {[%clk 0:00:25]}  Bf8 {[%clk 0:00:35]} 30. Qg5+ {[%clk 0:00:25]}  Kh8 {[%clk 0:00:35]} 31. Rxf8# {[%clk 0:00:25]} 1-0


[Site "https://www.chess.com"]

[Event "Titled Tuesday Blitz January 10 Early 2023"]
[White "Murzin, Volodar"]
[Black "Jaskolka, Tomasz"]
[WhiteFideId "44155573"]
[BlackFideId "1170791"]
[WhiteElo "2604"]
[BlackElo "2238"]
[Result "1-0"]
[Round "04"]
[TimeControl "180+2"]
[Date "2023.01.10"]
[WhiteClock "0:01:05"]
[BlackClock "0:01:14"]

1. e4 {[%clk 0:03:00]}  c5 {[%clk 0:03:00]} 2. Nf3 {[%clk 0:02:54]}  e6 {[%clk 0:03:00]} 3. g3 {[%clk 0:02:53]}  Nc6 {[%clk 0:02:58]} 4. Bg2 {[%clk 0:02:53]}  Nf6 {[%clk 0:02:59]} 5. Qe2 {[%clk 0:02:52]}  e5 {[%clk 0:02:58]} 6. Nc3 {[%clk 0:02:51]}  Be7 {[%clk 0:02:56]} 7. Nd5 {[%clk 0:02:51]}  O-O {[%clk 0:02:55]} 8. O-O {[%clk 0:02:50]}  d6 {[%clk 0:02:55]} 9. c3 {[%clk 0:02:49]}  Be6 {[%clk 0:02:53]} 10. Ne1 {[%clk 0:02:46]}  Re8 {[%clk 0:02:47]} 11. Nc2 {[%clk 0:02:45]}  Bf8 {[%clk 0:02:40]} 12. Nce3 {[%clk 0:02:42]}  h6 {[%clk 0:02:39]} 13. d3 {[%clk 0:02:41]}  Bxd5 {[%clk 0:02:35]} 14. Nxd5 {[%clk 0:02:24]}  Nxd5 {[%clk 0:02:36]} 15. exd5 {[%clk 0:02:25]}  Ne7 {[%clk 0:02:36]} 16. h4 {[%clk 0:02:25]}  g6 {[%clk 0:02:30]} 17. h5 {[%clk 0:02:22]}  g5 {[%clk 0:02:30]} 18. f4 {[%clk 0:01:53]}  f6 {[%clk 0:02:30]} 19. fxg5 {[%clk 0:01:52]}  fxg5 {[%clk 0:02:28]} 20. Be4 {[%clk 0:01:51]}  Bg7 {[%clk 0:02:26]} 21. Bxg5 {[%clk 0:01:38]}  hxg5 {[%clk 0:02:21]} 22. Qg4 {[%clk 0:01:36]}  Qc8 {[%clk 0:01:34]} 23. Qxg5 {[%clk 0:01:28]}  Qh3 {[%clk 0:01:34]} 24. Bg2 {[%clk 0:01:17]}  Qd7 {[%clk 0:01:31]} 25. h6 {[%clk 0:01:16]}  Nc8 {[%clk 0:01:31]} 26. Be4 {[%clk 0:01:06]}  Re7 {[%clk 0:01:17]} 27. h7+ {[%clk 0:01:03]}  Kh8 {[%clk 0:01:13]} 28. Rf8+ {[%clk 0:01:04]}  Bxf8 {[%clk 0:01:14]} 29. Qg8# {[%clk 0:01:05]} 1-0


[Site "https://www.chess.com"]

[Event "Titled Tuesday Blitz January 10 Early 2023"]
[White "Moskvin, Anatoly"]
[Black "Barrientos, Sergio E"]
[WhiteFideId "24199990"]
[BlackFideId "4401824"]
[WhiteElo "2189"]
[BlackElo "2479"]
[Result "1-0"]
[Round "04"]
[TimeControl "180+2"]
[Date "2023.01.10"]
[WhiteClock "0:00:55"]
[BlackClock "0:02:02"]

1. e4 {[%clk 0:03:00]}  c5 {[%clk 0:02:56]} 2. Nf3 {[%clk 0:03:01]}  d6 {[%clk 0:02:56]} 3. d4 {[%clk 0:03:01]}  cxd4 {[%clk 0:02:55]} 4. Nxd4 {[%clk 0:03:02]}  Nf6 {[%clk 0:02:54]} 5. f3 {[%clk 0:03:02]}  a6 {[%clk 0:02:55]} 6. c4 {[%clk 0:03:02]}  e6 {[%clk 0:02:51]} 7. Nc3 {[%clk 0:03:02]}  Nbd7 {[%clk 0:02:50]} 8. Be2 {[%clk 0:03:02]}  b6 {[%clk 0:02:51]} 9. O-O {[%clk 0:03:00]}  Bb7 {[%clk 0:02:52]} 10. Be3 {[%clk 0:03:00]}  Qc7 {[%clk 0:02:53]} 11. Rc1 {[%clk 0:03:00]}  Be7 {[%clk 0:02:53]} 12. Qd2 {[%clk 0:02:58]}  O-O {[%clk 0:02:53]} 13. Rfd1 {[%clk 0:02:59]}  Rfe8 {[%clk 0:02:52]} 14. Bf1 {[%clk 0:03:00]}  Rac8 {[%clk 0:02:45]} 15. Qf2 {[%clk 0:02:59]}  Qb8 {[%clk 0:02:45]} 16. a3 {[%clk 0:02:51]}  Bd8 {[%clk 0:02:45]} 17. Kh1 {[%clk 0:02:38]}  Bc7 {[%clk 0:02:45]} 18. h3 {[%clk 0:02:03]}  h6 {[%clk 0:02:34]} 19. b4 {[%clk 0:02:03]}  Ne5 {[%clk 0:02:19]} 20. Nb3 {[%clk 0:01:57]}  Ned7 {[%clk 0:02:15]} 21. Na4 {[%clk 0:01:41]}  Bc6 {[%clk 0:02:14]} 22. b5 {[%clk 0:01:36]}  axb5 {[%clk 0:02:12]} 23. cxb5 {[%clk 0:01:36]}  Ba8 {[%clk 0:02:12]} 24. Rxc7 {[%clk 0:01:14]}  Qxc7 {[%clk 0:02:07]} 25. Nxb6 {[%clk 0:01:14]}  Qxb6 {[%clk 0:02:06]} 26. Bxb6 {[%clk 0:01:15]}  Nxb6 {[%clk 0:02:05]} 27. Qxb6 {[%clk 0:01:15]}  d5 {[%clk 0:02:06]} 28. e5 {[%clk 0:01:11]}  Nd7 {[%clk 0:02:05]} 29. Qd4 {[%clk 0:01:10]}  f6 {[%clk 0:02:05]} 30. f4 {[%clk 0:01:07]}  fxe5 {[%clk 0:02:05]} 31. fxe5 {[%clk 0:01:06]}  Red8 {[%clk 0:02:04]} 32. a4 {[%clk 0:01:02]}  Rf8 {[%clk 0:02:04]} 33. Bd3 {[%clk 0:01:01]}  Rb8 {[%clk 0:02:02]} 34. Nc5 {[%clk 0:00:55]} 1-0


[Site "https://www.chess.com"]

[Event "Titled Tuesday Blitz January 10 Early 2023"]
[White "Shuvalova, Polina"]
[Black "Shtompel, Yuriy"]
[WhiteFideId "24171760"]
[BlackFideId "14168278"]
[WhiteElo "2484"]
[BlackElo "1938"]
[Result "1-0"]
[Round "04"]
[TimeControl "180+2"]
[Date "2023.01.10"]
[WhiteClock "0:00:25"]
[BlackClock "0:00:10"]

1. d4 {[%clk 0:03:00]}  Nf6 {[%clk 0:02:54]} 2. Nf3 {[%clk 0:02:59]}  d5 {[%clk 0:02:53]} 3. Bf4 {[%clk 0:02:57]}  e6 {[%clk 0:02:48]} 4. e3 {[%clk 0:02:57]}  Be7 {[%clk 0:02:47]} 5. Nbd2 {[%clk 0:02:55]}  O-O {[%clk 0:02:47]} 6. h4 {[%clk 0:02:52]}  c5 {[%clk 0:02:46]} 7. c3 {[%clk 0:02:52]}  Nc6 {[%clk 0:02:43]} 8. Bd3 {[%clk 0:02:52]}  Bd6 {[%clk 0:02:39]} 9. Bg5 {[%clk 0:02:49]}  h6 {[%clk 0:02:39]} 10. Bf4 {[%clk 0:02:37]}  Qc7 {[%clk 0:02:16]} 11. dxc5 {[%clk 0:01:50]}  Bxf4 {[%clk 0:02:00]} 12. exf4 {[%clk 0:01:51]}  Qxf4 {[%clk 0:01:59]} 13. Qe2 {[%clk 0:01:51]}  e5 {[%clk 0:01:44]} 14. g3 {[%clk 0:01:46]}  Qg4 {[%clk 0:01:33]} 15. Nh2 {[%clk 0:01:40]}  Qe6 {[%clk 0:01:12]} 16. O-O {[%clk 0:01:32]}  e4 {[%clk 0:01:09]} 17. Bc2 {[%clk 0:01:31]}  Qh3 {[%clk 0:01:00]} 18. Rfe1 {[%clk 0:01:19]}  Ne5 {[%clk 0:00:49]} 19. Qf1 {[%clk 0:01:12]}  Qd7 {[%clk 0:00:31]} 20. Rad1 {[%clk 0:01:05]}  a5 {[%clk 0:00:30]} 21. c4 {[%clk 0:01:04]}  Ra6 {[%clk 0:00:20]} 22. cxd5 {[%clk 0:01:02]}  Qxd5 {[%clk 0:00:21]} 23. Nxe4 {[%clk 0:00:58]}  Qc6 {[%clk 0:00:21]} 24. Rd6 {[%clk 0:00:51]}  Nxe4 {[%clk 0:00:09]} 25. Rxc6 {[%clk 0:00:45]}  Rxc6 {[%clk 0:00:10]} 26. Bxe4 {[%clk 0:00:44]}  Rc7 {[%clk 0:00:10]} 27. Bb1 {[%clk 0:00:36]}  Rxc5 {[%clk 0:00:08]} 28. Qe2 {[%clk 0:00:34]}  Nc6 {[%clk 0:00:07]} 29. Nf3 {[%clk 0:00:32]}  Bg4 {[%clk 0:00:06]} 30. Qe4 {[%clk 0:00:28]}  Bf5 {[%clk 0:00:07]} 31. Qe3 {[%clk 0:00:28]}  b6 {[%clk 0:00:06]} 32. Bxf5 {[%clk 0:00:28]}  Rxf5 {[%clk 0:00:07]} 33. Nd4 {[%clk 0:00:26]}  Rc5 {[%clk 0:00:08]} 34. Nxc6 {[%clk 0:00:26]}  Rxc6 {[%clk 0:00:08]} 35. Rc1 {[%clk 0:00:25]}  Rfc8 {[%clk 0:00:08]} 36. Rxc6 {[%clk 0:00:25]}  Rxc6 {[%clk 0:00:09]} 37. Qe8+ {[%clk 0:00:25]}  Kh7 {[%clk 0:00:10]} 38. Qxc6 {[%clk 0:00:25]} 1-0


[Site "https://www.chess.com"]

[Event "Titled Tuesday Blitz January 10 Early 2023"]
[White "Marcziter, Dmitrii"]
[Black "Dehtiarov, Roman"]
[WhiteFideId "13900765"]
[BlackFideId "14186640"]
[WhiteElo "2234"]
[BlackElo "2289"]
[Result "0-1"]
[Round "04"]
[TimeControl "180+2"]
[Date "2023.01.10"]
[WhiteClock "0:01:46"]
[BlackClock "0:01:37"]

1. d4 {[%clk 0:03:00]}  Nf6 {[%clk 0:02:59]} 2. Nf3 {[%clk 0:03:00]}  d5 {[%clk 0:02:59]} 3. c4 {[%clk 0:03:00]}  e6 {[%clk 0:02:59]} 4. g3 {[%clk 0:02:58]}  b6 {[%clk 0:02:59]} 5. Bg2 {[%clk 0:02:58]}  Bb7 {[%clk 0:02:59]} 6. O-O {[%clk 0:02:58]}  Nbd7 {[%clk 0:02:59]} 7. b3 {[%clk 0:02:58]}  Be7 {[%clk 0:02:59]} 8. Bb2 {[%clk 0:02:58]}  O-O {[%clk 0:03:00]} 9. Nbd2 {[%clk 0:02:58]}  c6 {[%clk 0:03:00]} 10. Qc2 {[%clk 0:02:57]}  Rc8 {[%clk 0:03:00]} 11. e4 {[%clk 0:02:57]}  dxe4 {[%clk 0:02:59]} 12. Nxe4 {[%clk 0:02:57]}  Nxe4 {[%clk 0:03:00]} 13. Qxe4 {[%clk 0:02:57]}  Nf6 {[%clk 0:03:01]} 14. Qe2 {[%clk 0:02:56]}  c5 {[%clk 0:03:01]} 15. Rad1 {[%clk 0:02:55]}  cxd4 {[%clk 0:02:59]} 16. Bxd4 {[%clk 0:02:54]}  Qe8 {[%clk 0:02:56]} 17. Rfe1 {[%clk 0:02:51]}  h6 {[%clk 0:02:52]} 18. Bh3 {[%clk 0:02:39]}  Rd8 {[%clk 0:02:48]} 19. Ne5 {[%clk 0:02:37]}  Bb4 {[%clk 0:02:42]} 20. Rf1 {[%clk 0:02:34]}  Nh7 {[%clk 0:02:38]} 21. Bg2 {[%clk 0:02:33]}  Bxg2 {[%clk 0:02:36]} 22. Kxg2 {[%clk 0:02:33]}  f6 {[%clk 0:02:37]} 23. Ng6 {[%clk 0:02:26]}  Qxg6 {[%clk 0:02:33]} 24. Qxe6+ {[%clk 0:02:26]}  Qf7 {[%clk 0:02:33]} 25. Qg4 {[%clk 0:02:25]}  Bc5 {[%clk 0:02:32]} 26. Bc3 {[%clk 0:02:24]}  h5 {[%clk 0:02:30]} 27. Qf5 {[%clk 0:02:23]}  Ng5 {[%clk 0:02:19]} 28. h4 {[%clk 0:02:20]}  Qb7+ {[%clk 0:02:19]} 29. f3 {[%clk 0:02:21]}  Nf7 {[%clk 0:02:16]} 30. Qg6 {[%clk 0:02:16]}  Ne5 {[%clk 0:02:00]} 31. Qxh5 {[%clk 0:02:16]}  g6 {[%clk 0:01:55]} 32. Qh6 {[%clk 0:02:10]}  Rxd1 {[%clk 0:01:49]} 33. Bxe5 {[%clk 0:01:54]}  Rxf1 {[%clk 0:01:47]} 34. Kxf1 {[%clk 0:01:45]}  Qxf3+ {[%clk 0:01:44]} 35. Ke1 {[%clk 0:01:45]}  Qe3+ {[%clk 0:01:44]} 36. Kd1 {[%clk 0:01:46]}  Qxh6 {[%clk 0:01:37]} 0-1


[Site "https://www.chess.com"]

[Event "Titled Tuesday Blitz January 10 Early 2023"]
[White "Foerster-Yialamas, Lucas"]
[Black "Khamzin, Olzhas"]
[WhiteFideId "30901774"]
[BlackFideId "13701690"]
[WhiteElo "2151"]
[BlackElo "2301"]
[Result "1-0"]
[Round "04"]
[TimeControl "180+2"]
[Date "2023.01.10"]
[WhiteClock "0:01:58"]
[BlackClock "0:01:56"]

1. e4 {[%clk 0:03:00]}  c5 {[%clk 0:02:55]} 2. Nf3 {[%clk 0:03:00]}  d6 {[%clk 0:02:56]} 3. d4 {[%clk 0:03:00]}  cxd4 {[%clk 0:02:57]} 4. c3 {[%clk 0:03:01]}  Nf6 {[%clk 0:02:57]} 5. cxd4 {[%clk 0:02:35]}  Nxe4 {[%clk 0:02:50]} 6. Bd3 {[%clk 0:02:35]}  Qa5+ {[%clk 0:02:43]} 7. Nbd2 {[%clk 0:02:30]}  Nxd2 {[%clk 0:02:42]} 8. Bxd2 {[%clk 0:02:31]}  Qb6 {[%clk 0:02:43]} 9. Rc1 {[%clk 0:02:29]}  Nc6 {[%clk 0:02:43]} 10. d5 {[%clk 0:02:26]}  Nd8 {[%clk 0:02:34]} 11. Rxc8 {[%clk 0:02:17]}  Rxc8 {[%clk 0:02:34]} 12. Qa4+ {[%clk 0:02:18]}  Nc6 {[%clk 0:02:35]} 13. dxc6 {[%clk 0:02:19]}  bxc6 {[%clk 0:02:35]} 14. O-O {[%clk 0:02:17]}  e6 {[%clk 0:02:27]} 15. Rc1 {[%clk 0:02:10]}  Kd7 {[%clk 0:02:27]} 16. Nd4 {[%clk 0:02:04]}  a6 {[%clk 0:02:11]} 17. Bxa6 {[%clk 0:02:01]}  Ra8 {[%clk 0:02:11]} 18. Rxc6 {[%clk 0:02:00]}  Rxa6 {[%clk 0:01:56]} 19. Qxa6 {[%clk 0:01:59]}  Qxa6 {[%clk 0:01:56]} 20. Rxa6 {[%clk 0:02:00]}  Be7 {[%clk 0:01:56]} 21. Ra7+ {[%clk 0:01:58]} 1-0


[Site "https://www.chess.com"]